fUSD/lending_fUSD_20260517
["ID","MTS","AMOUNT","RATE_DAILY","PERIOD"]
[422493133,1778994659000,-47.15867215,0.00025,2]
[422493131,1778994659000,-481.28,0.00025,2]
[422493136,1778994912000,165.92,0.00029034,120]
[422493135,1778994912000,165.92,0.00026131,120]
[422493138,1778995250000,212.65,0.00030137,120]
[422493139,1778995300000,2000.0,0.00027474,120]
[422493140,1778995524000,-164.6,0.00010961,2]
[422493158,1778995831000,-151.0,0.00018719,2]
[422493159,1778995831000,-151.0,0.00018719,2]
[422493156,1778995831000,-151.0,0.00018719,2]
[422493157,1778995831000,-151.0,0.00018719,2]
[422493155,1778995831000,-151.0,0.00018719,2]
[422493153,1778995831000,-151.0,0.00018719,2]
[422493154,1778995831000,-151.0,0.00018719,2]
[422493147,1778995831000,-490.0,0.0001841,2]
[422493152,1778995831000,-151.0,0.00018719,2]
[422493149,1778995831000,-1200.0,0.00018718,2]
[422493150,1778995831000,-300.0,0.00018718,2]
[422493151,1778995831000,-151.0,0.00018719,2]
[422493146,1778995831000,-4435.41739322,0.000183,2]
[422493145,1778995831000,-164.6,0.00017982,2]
[422493143,1778995831000,-197.76399931,0.00016438,2]
[422493142,1778995831000,-164.6,0.00014472,2]
[422493160,1778995831000,-151.0,0.00018719,2]
[422493148,1778995831000,-927.80114462,0.00018512,2]
[422493161,1778995831000,-151.0,0.00018719,2]
[422493144,1778995831000,-292.23600069,0.00016438,2]
[422493165,1778995831000,-151.0,0.00018719,2]
[422493162,1778995831000,-151.0,0.00018719,2]
[422493185,1778995831000,-152.0,0.0002,2]
[422493183,1778995831000,-178.0,0.0002,2]
[422493189,1778995831000,-195.0,0.0002,2]
[422493180,1778995831000,-190.0,0.0002,2]
[422493172,1778995831000,-1434.998568,0.000199,2]
[422493174,1778995831000,-199.0,0.0002,2]
[422493178,1778995831000,-157.0,0.0002,2]
[422493171,1778995831000,-151.0,0.00018719,2]
[422493187,1778995831000,-152.0,0.0002,2]
[422493173,1778995831000,-153.0,0.0002,2]
[422493169,1778995831000,-151.0,0.00018719,2]
[422493176,1778995831000,-277.0,0.0002,2]
[422493181,1778995831000,-335.0,0.0002,2]
[422493168,1778995831000,-151.0,0.00018719,2]
[422493166,1778995831000,-151.0,0.00018719,2]
[422493163,1778995831000,-151.0,0.00018719,2]
[422493164,1778995831000,-151.0,0.00018719,2]
[422493170,1778995831000,-151.0,0.00018719,2]
[422493228,1778995832000,-442.5,0.00021506,2]
[422493217,1778995832000,-195.0,0.00021,2]
[422493220,1778995832000,-490.35,0.00021107,2]
[422493222,1778995832000,-150.0,0.00021126,2]
[422493221,1778995832000,-500.0,0.00021114,2]
[422493223,1778995832000,-166.66,0.00021262,2]
[422493224,1778995832000,-163.41,0.00021262,2]
[422493240,1778995832000,-178.0,0.00022,2]
[422493226,1778995832000,-18348.63,0.00021304,2]
[422493225,1778995832000,-557.11907696,0.00021274,2]
[422493230,1778995832000,-403.28905381,0.00021769,2]
[422493231,1778995832000,-356.32,0.0002181,2]
[422493229,1778995832000,-166.66,0.0002171,2]
[422493236,1778995832000,-277.0,0.00022,2]
[422493218,1778995832000,-150.0,0.00021104,2]
[422493227,1778995832000,-164.6,0.00021493,2]
[422493219,1778995832000,-2818.72,0.00021107,2]
[422493206,1778995832000,-155.82510781,0.00021,2]
[422493215,1778995832000,-152.0,0.00021,2]
[422493194,1778995832000,-653.24,0.00020381,2]
[422493195,1778995832000,-420.0,0.00020408,2]
[422493197,1778995832000,-164.50360177,0.00020445,2]
[422493190,1778995832000,-490.0,0.00020381,2]
[422493192,1778995832000,-299.99,0.00020381,7]
[422493199,1778995832000,-1680.0,0.00020508,2]
[422493202,1778995832000,-2500.0,0.00020932,2]
[422493211,1778995832000,-190.0,0.00021,2]
[422493201,1778995832000,-3842.83,0.00020548,2]
[422493204,1778995832000,-157.54,0.00020954,2]
[422493213,1778995832000,-178.0,0.00021,2]
[422493207,1778995832000,-199.0,0.00021,2]
[422493214,1778995832000,-152.0,0.00021,2]
[422493209,1778995832000,-277.0,0.00021,2]
[422493212,1778995832000,-335.0,0.00021,2]
[422493210,1778995832000,-157.0,0.00021,2]
[422493233,1778995832000,-2239.88831495,0.00021918,2]
[422493235,1778995832000,-199.0,0.00022,2]
[422493216,1778995832000,-500.0,0.00021,2]
[422493237,1778995832000,-157.0,0.00022,2]
[422493258,1778995832000,-1575.83,0.00022466,2]
[422493260,1778995832000,-200.0,0.00022498,2]
[422493256,1778995832000,-900.0,0.00022453,2]
[422493262,1778995832000,-7827.81925608,0.00022588,2]
[422493261,1778995832000,-442.5,0.00022581,2]
[422493259,1778995832000,-2351.0,0.00022469,2]
[422493264,1778995832000,-30357.95453125,0.0002263,2]
[422493257,1778995832000,-1756.73,0.00022466,2]
[422493263,1778995832000,-166.66,0.00022605,30]
[422493267,1778995832000,-2239.88831495,0.00022701,2]
[422493268,1778995832000,-52352.84790408,0.00022731,2]
[422493266,1778995832000,-233.43,0.0002267,2]
[422493270,1778995832000,-729.65886791,0.00022731,2]
[422493271,1778995832000,-1700.23783598,0.00022731,2]
[422493232,1778995832000,-158.35783033,0.0002181,2]
[422493273,1778995832000,-4474.17622993,0.00022731,2]
[422493269,1778995832000,-491.75,0.00022731,2]
[422493255,1778995832000,-1000.0,0.00022431,2]
[422493272,1778995832000,-498.60816711,0.00022731,2]
[422493254,1778995832000,-294.91694935,0.00022407,2]
[422493265,1778995832000,-500.0,0.00022663,2]
[422493234,1778995832000,-2000.0,0.00021979,2]
[422493239,1778995832000,-335.0,0.00022,2]
[422493243,1778995832000,-195.0,0.00022,2]
[422493241,1778995832000,-152.0,0.00022,2]
[422493244,1778995832000,-5000.0,0.00022041,2]
[422493242,1778995832000,-152.0,0.00022,2]
[422493245,1778995832000,-442.5,0.00022043,2]
[422493253,1778995832000,-9999.99,0.00022353,2]
[422493252,1778995832000,-9999.99,0.00022353,2]
[422493247,1778995832000,-166.66,0.00022157,30]
[422493246,1778995832000,-165.13,0.00022107,2]
[422493248,1778995832000,-2507.55589859,0.0002224,2]
[422493250,1778995832000,-490.0,0.00022353,2]
[422493251,1778995832000,-1793.64,0.00022353,2]
[422493249,1778995832000,-587.0,0.00022252,2]
[422493238,1778995832000,-190.0,0.00022,2]
[422493277,1778995837000,-8272.28673679,0.00022731,2]
[422493278,1778995837000,-7295.89671165,0.00022731,2]
[422493282,1778995837000,-1104.2279438,0.00022731,2]
[422493281,1778995837000,-3522.87650142,0.00022731,2]
[422493280,1778995837000,-693.42697033,0.00022731,2]
[422493279,1778995837000,-294.400006,0.00022731,2]
[422493324,1778995838000,-166.66,0.000235,30]
[422493323,1778995838000,-2239.88831495,0.00023483,2]
[422493331,1778995838000,-267.0,0.00023961,2]
[422493322,1778995838000,-2500.0,0.000234,2]
[422493327,1778995838000,-20322.09,0.00023702,2]
[422493329,1778995838000,-500.0,0.00023899,2]
[422493328,1778995838000,-900.0,0.00023823,2]
[422493321,1778995838000,-30357.95453123,0.00023342,2]
[422493330,1778995838000,-233.43,0.00023929,2]
[422493318,1778995838000,-165.92,0.00023228,2]
[422493336,1778995838000,-500.0,0.00023973,2]
[422493337,1778995838000,-500.0,0.00023973,2]
[422493350,1778995838000,-152.0,0.00024,2]
[422493332,1778995838000,-500.0,0.00023973,2]
[422493335,1778995838000,-500.0,0.00023973,2]
[422493338,1778995838000,-500.0,0.00023973,2]
[422493334,1778995838000,-500.0,0.00023973,2]
[422493340,1778995838000,-220.31523923,0.00023973,2]
[422493341,1778995838000,-5000.0,0.00023974,2]
[422493343,1778995838000,-154.05302278,0.00023974,6]
[422493339,1778995838000,-500.0,0.00023973,2]
[422493342,1778995838000,-1705.2890925,0.00023974,2]
[422493349,1778995838000,-178.0,0.00024,2]
[422493325,1778995838000,-165.13,0.00023566,2]
[422493345,1778995838000,-277.0,0.00024,2]
[422493333,1778995838000,-500.0,0.00023973,2]
[422493317,1778995838000,-500.0,0.00023222,2]
[422493288,1778995838000,-199.0,0.00023,2]
[422493314,1778995838000,-500.0,0.00023222,2]
[422493344,1778995838000,-199.0,0.00024,2]
[422493284,1778995838000,-2283.60607414,0.00022731,2]
[422493294,1778995838000,-190.0,0.00023,2]
[422493296,1778995838000,-335.0,0.00023,2]
[422493283,1778995838000,-1298.58005086,0.00022731,2]
[422493298,1778995838000,-178.0,0.00023,2]
[422493286,1778995838000,-231.49,0.00022823,2]
[422493287,1778995838000,-165.13,0.00022837,2]
[422493285,1778995838000,-200.0,0.00022731,2]
[422493289,1778995838000,-277.0,0.00023,2]
[422493292,1778995838000,-157.0,0.00023,2]
[422493300,1778995838000,-157.61,0.00023,2]
[422493302,1778995838000,-152.0,0.00023,2]
[422493305,1778995838000,-166.66,0.00023052,30]
[422493304,1778995838000,-777.0,0.00023,2]
[422493313,1778995838000,-500.0,0.00023222,2]
[422493311,1778995838000,-500.0,0.00023222,2]
[422493303,1778995838000,-195.0,0.00023,2]
[422493312,1778995838000,-500.0,0.00023222,2]
[422493308,1778995838000,-476.1886123,0.00023199,2]
[422493306,1778995838000,-442.5,0.00023119,2]
[422493309,1778995838000,-500.0,0.00023199,2]
[422493310,1778995838000,-324.51,0.00023222,2]
[422493307,1778995838000,-154.05302279,0.00023122,6]
[422493315,1778995838000,-500.0,0.00023222,2]
[422493320,1778995838000,-500.0,0.00023331,2]
[422493326,1778995838000,-442.5,0.00023656,2]
[422493319,1778995838000,-309.83370885,0.00023331,2]
[422493346,1778995838000,-157.0,0.00024,2]
[422493363,1778995838000,-500.0,0.00024067,2]
[422493347,1778995838000,-190.0,0.00024,2]
[422493378,1778995838000,-150.0,0.00024067,2]
[422493383,1778995838000,-500.0,0.00024067,2]
[422493382,1778995838000,-1025.0,0.00024067,2]
[422493386,1778995838000,-1025.0,0.00024067,2]
[422493385,1778995838000,-500.0,0.00024067,2]
[422493396,1778995838000,-500.0,0.00024067,2]
[422493388,1778995838000,-150.0,0.00024067,2]
[422493389,1778995838000,-500.0,0.00024067,2]
[422493387,1778995838000,-500.0,0.00024067,2]
[422493393,1778995838000,-1025.0,0.00024067,2]
[422493391,1778995838000,-500.0,0.00024067,2]
[422493390,1778995838000,-1025.0,0.00024067,2]
[422493379,1778995838000,-150.0,0.00024067,2]
[422493392,1778995838000,-150.0,0.00024067,2]
[422493398,1778995838000,-500.0,0.00024067,2]
[422493399,1778995838000,-1025.0,0.00024067,2]
[422493397,1778995838000,-1025.0,0.00024067,2]
[422493406,1778995838000,-500.0,0.00024067,2]
[422493401,1778995838000,-1025.0,0.00024067,2]
[422493405,1778995838000,-1025.0,0.00024067,2]
[422493402,1778995838000,-500.0,0.00024067,2]
[422493400,1778995838000,-500.0,0.00024067,2]
[422493407,1778995838000,-1025.0,0.00024067,2]
[422493404,1778995838000,-500.0,0.00024067,2]
[422493403,1778995838000,-1025.0,0.00024067,2]
[422493348,1778995838000,-335.0,0.00024,2]
[422493395,1778995838000,-1025.0,0.00024067,2]
[422493377,1778995838000,-150.0,0.00024067,2]
[422493394,1778995838000,-150.0,0.00024067,2]
[422493384,1778995838000,-1025.0,0.00024067,2]
[422493351,1778995838000,-450.67982138,0.00024,2]
[422493381,1778995838000,-1025.0,0.00024067,2]
[422493355,1778995838000,-443.15855195,0.00024064,2]
[422493353,1778995838000,-161.24934823,0.00024,2]
[422493356,1778995838000,-150.0,0.00024067,2]
[422493354,1778995838000,-30357.95453123,0.00024054,2]
[422493352,1778995838000,-195.0,0.00024,2]
[422493357,1778995838000,-241.21762394,0.00024067,2]
[422493361,1778995838000,-500.0,0.00024067,2]
[422493358,1778995838000,-150.0,0.00024067,2]
[422493359,1778995838000,-150.0,0.00024067,2]
[422493373,1778995838000,-555.78017469,0.00024067,2]
[422493362,1778995838000,-500.0,0.00024067,2]
[422493360,1778995838000,-150.0,0.00024067,2]
[422493368,1778995838000,-150.0,0.00024067,2]
[422493380,1778995838000,-299.93318737,0.00024067,2]
[422493375,1778995838000,-500.0,0.00024067,2]
[422493376,1778995838000,-243.06675581,0.00024067,2]
[422493374,1778995838000,-500.0,0.00024067,2]
[422493364,1778995838000,-500.0,0.00024067,2]
[422493365,1778995838000,-274.94282544,0.00024067,2]
[422493372,1778995838000,-500.0,0.00024067,2]
[422493366,1778995838000,-500.0,0.00024067,2]
[422493369,1778995838000,-176.41211955,0.00024067,2]
[422493367,1778995838000,-441.19250183,0.00024067,2]
[422493371,1778995838000,-500.0,0.00024067,2]
[422493370,1778995838000,-500.0,0.00024067,2]
[422493452,1778995839000,-500.0,0.00024073,2]
[422493451,1778995839000,-500.0,0.00024073,2]
[422493460,1778995839000,-500.0,0.00024073,2]
[422493458,1778995839000,-500.0,0.00024073,2]
[422493456,1778995839000,-500.0,0.00024073,2]
[422493449,1778995839000,-500.0,0.00024073,2]
[422493436,1778995839000,-500.0,0.00024067,2]
[422493444,1778995839000,-500.0,0.00024073,2]
[422493440,1778995839000,-181.11697857,0.00024067,2]
[422493442,1778995839000,-151.0,0.00024071,7]
[422493445,1778995839000,-631.55936134,0.00024073,2]
[422493457,1778995839000,-500.0,0.00024073,2]
[422493443,1778995839000,-151.0,0.00024071,7]
[422493450,1778995839000,-500.0,0.00024073,2]
[422493471,1778995839000,-527.43788635,0.00024073,2]
[422493454,1778995839000,-164.41440023,0.00024073,2]
[422493459,1778995839000,-500.0,0.00024073,2]
[422493453,1778995839000,-593.21552927,0.00024073,2]
[422493461,1778995839000,-286.85888162,0.00024073,2]
[422493463,1778995839000,-500.0,0.00024073,2]
[422493475,1778995839000,-506.10311636,0.00024073,2]
[422493474,1778995839000,-500.0,0.00024073,2]
[422493473,1778995839000,-500.0,0.00024073,2]
[422493467,1778995839000,-500.0,0.00024073,2]
[422493468,1778995839000,-525.39,0.00024073,2]
[422493466,1778995839000,-509.9741162,0.00024073,2]
[422493465,1778995839000,-500.0,0.00024073,2]
[422493464,1778995839000,-500.0,0.00024073,2]
[422493438,1778995839000,-333.81947397,0.00024067,2]
[422493455,1778995839000,-500.0,0.00024073,2]
[422493441,1778995839000,-151.0,0.00024071,7]
[422493423,1778995839000,-1025.0,0.00024067,2]
[422493446,1778995839000,-500.0,0.00024073,2]
[422493408,1778995839000,-500.0,0.00024067,2]
[422493409,1778995839000,-1025.0,0.00024067,2]
[422493411,1778995839000,-1025.0,0.00024067,2]
[422493422,1778995839000,-1025.0,0.00024067,2]
[422493421,1778995839000,-1025.0,0.00024067,2]
[422493410,1778995839000,-500.0,0.00024067,2]
[422493412,1778995839000,-500.0,0.00024067,2]
[422493414,1778995839000,-500.0,0.00024067,2]
[422493419,1778995839000,-1025.0,0.00024067,2]
[422493418,1778995839000,-1025.0,0.00024067,2]
[422493420,1778995839000,-1025.0,0.00024067,2]
[422493413,1778995839000,-1025.0,0.00024067,2]
[422493415,1778995839000,-500.0,0.00024067,2]
[422493416,1778995839000,-1025.0,0.00024067,2]
[422493447,1778995839000,-500.0,0.00024073,2]
[422493417,1778995839000,-220.0,0.00024067,2]
[422493435,1778995839000,-500.0,0.00024067,2]
[422493430,1778995839000,-150.0,0.00024067,2]
[422493424,1778995839000,-1026.97526556,0.00024067,2]
[422493433,1778995839000,-500.0,0.00024067,2]
[422493428,1778995839000,-150.0,0.00024067,2]
[422493427,1778995839000,-150.0,0.00024067,2]
[422493431,1778995839000,-500.0,0.00024067,2]
[422493434,1778995839000,-500.0,0.00024067,2]
[422493462,1778995839000,-500.0,0.00024073,2]
[422493432,1778995839000,-500.0,0.00024067,2]
[422493429,1778995839000,-200.0,0.00024067,2]
[422493437,1778995839000,-500.0,0.00024067,2]
[422493448,1778995839000,-500.0,0.00024073,2]
[422493439,1778995839000,-500.0,0.00024067,2]
[422493425,1778995839000,-160.0,0.00024067,2]
[422493469,1778995839000,-504.31823743,0.00024073,2]
[422493426,1778995839000,-160.34130374,0.00024067,2]
[422493472,1778995839000,-500.0,0.00024073,2]
[422493513,1778995839000,-423.83139422,0.00024267,2]
[422493506,1778995839000,-418.05,0.00024174,2]
[422493512,1778995839000,-2267.80707266,0.00024267,2]
[422493515,1778995839000,-175.68466801,0.00024267,2]
[422493516,1778995839000,-8240.4009,0.00024267,2]
[422493510,1778995839000,-823.0,0.00024261,2]
[422493517,1778995839000,-165.13,0.00024296,2]
[422493519,1778995839000,-443.15855195,0.00024357,2]
[422493530,1778995839000,-500.0,0.00024369,2]
[422493529,1778995839000,-500.0,0.00024369,2]
[422493520,1778995839000,-151.0,0.00024364,7]
[422493524,1778995839000,-1033.8177419,0.00024367,2]
[422493528,1778995839000,-500.0,0.00024369,2]
[422493521,1778995839000,-1105.18419788,0.00024366,10]
[422493505,1778995839000,-738.33,0.000241,7]
[422493525,1778995839000,-366.6891395,0.00024369,2]
[422493518,1778995839000,-490.0,0.00024324,2]
[422493522,1778995839000,-1500000.0,0.00024367,2]
[422493523,1778995839000,-9673.24725349,0.00024367,2]
[422493527,1778995839000,-500.0,0.00024369,2]
[422493532,1778995839000,-500.0,0.00024369,2]
[422493531,1778995839000,-500.0,0.00024369,2]
[422493540,1778995839000,-950.0,0.00024471,2]
[422493535,1778995839000,-500.0,0.00024369,2]
[422493536,1778995839000,-500.0,0.00024369,2]
[422493533,1778995839000,-500.0,0.00024369,2]
[422493534,1778995839000,-574.23113137,0.00024369,2]
[422493538,1778995839000,-614.03382431,0.00024369,2]
[422493539,1778995839000,-2500.0,0.00024471,2]
[422493470,1778995839000,-500.0,0.00024073,2]
[422493526,1778995839000,-407.36389492,0.00024369,2]
[422493508,1778995839000,-2989.34,0.00024174,2]
[422493537,1778995839000,-500.0,0.00024369,2]
[422493511,1778995839000,-2239.88831495,0.00024266,2]
[422493507,1778995839000,-2132.26,0.00024174,2]
[422493476,1778995839000,-513.43920586,0.00024073,2]
[422493478,1778995839000,-500.0,0.00024073,2]
[422493480,1778995839000,-500.0,0.00024073,2]
[422493488,1778995839000,-512.70710012,0.00024073,2]
[422493482,1778995839000,-500.0,0.00024073,2]
[422493483,1778995839000,-500.0,0.00024073,2]
[422493486,1778995839000,-500.0,0.00024073,2]
[422493487,1778995839000,-500.0,0.00024073,2]
[422493477,1778995839000,-500.0,0.00024073,2]
[422493484,1778995839000,-506.38825692,0.00024073,2]
[422493485,1778995839000,-500.0,0.00024073,2]
[422493481,1778995839000,-500.0,0.00024073,2]
[422493489,1778995839000,-3000.0,0.00024073,2]
[422493491,1778995839000,-500.0,0.00024073,2]
[422493479,1778995839000,-500.0,0.00024073,2]
[422493502,1778995839000,-500.0,0.00024073,2]
[422493501,1778995839000,-500.0,0.00024073,2]
[422493509,1778995839000,-989.53,0.00024174,2]
[422493503,1778995839000,-435.9322571,0.00024073,2]
[422493495,1778995839000,-377.02817999,0.00024073,2]
[422493497,1778995839000,-500.0,0.00024073,2]
[422493500,1778995839000,-500.0,0.00024073,2]
[422493504,1778995839000,-2500000.0,0.00024074,2]
[422493498,1778995839000,-636.76912385,0.00024073,2]
[422493493,1778995839000,-500.0,0.00024073,2]
[422493496,1778995839000,-500.0,0.00024073,2]
[422493492,1778995839000,-500.0,0.00024073,2]
[422493514,1778995839000,-7944.53389954,0.00024267,2]
[422493499,1778995839000,-500.0,0.00024073,2]
[422493494,1778995839000,-500.0,0.00024073,2]
[422493490,1778995839000,-500.0,0.00024073,2]
[422493572,1778995840000,-208.48490792,0.00026098,2]
[422493583,1778995840000,-332.0,0.00026452,2]
[422493569,1778995840000,-2239.88831495,0.00025832,2]
[422493571,1778995840000,-160.0,0.00026098,2]
[422493576,1778995840000,-185.42,0.0002611,2]
[422493573,1778995840000,-364.0,0.00026099,2]
[422493579,1778995840000,-645.76058024,0.000264,2]
[422493578,1778995840000,-490.0,0.00026296,2]
[422493580,1778995840000,-449.85961771,0.000264,2]
[422493582,1778995840000,-233.43,0.00026448,2]
[422493581,1778995840000,-738.33,0.000264,7]
[422493588,1778995840000,-279.0,0.00026649,2]
[422493575,1778995840000,-449.85961771,0.000261,2]
[422493591,1778995840000,-11107.05,0.00026651,2]
[422493586,1778995840000,-449.85961771,0.000266,2]
[422493584,1778995840000,-157.54,0.00026502,2]
[422493587,1778995840000,-2239.88831495,0.00026614,2]
[422493589,1778995840000,-150.0,0.00026649,2]
[422493592,1778995840000,-19005.72407565,0.00026712,21]
[422493590,1778995840000,-215.0,0.00026649,2]
[422493593,1778995840000,-645.76058024,0.000269,2]
[422493600,1778995840000,-247.22,0.00027108,2]
[422493594,1778995840000,-449.85961771,0.000269,2]
[422493595,1778995840000,-30357.95453123,0.00026901,2]
[422493574,1778995840000,-645.76058024,0.000261,2]
[422493597,1778995840000,-4609.0,0.00026972,2]
[422493585,1778995840000,-645.76058024,0.000266,2]
[422493577,1778995840000,-30357.95453123,0.00026189,2]
[422493551,1778995840000,-2000.0,0.00024727,2]
[422493565,1778995840000,-418.05,0.00025786,2]
[422493596,1778995840000,-1705.28909246,0.00026962,2]
[422493542,1778995840000,-151.0,0.00024551,7]
[422493541,1778995840000,-1350.0,0.00024471,30]
[422493544,1778995840000,-2000.0,0.00024554,2]
[422493555,1778995840000,-201.0,0.00025,2]
[422493547,1778995840000,-3292.0,0.00024618,2]
[422493545,1778995840000,-152.0,0.00024585,2]
[422493554,1778995840000,-288.0,0.00025,2]
[422493546,1778995840000,-152.0,0.00024585,2]
[422493543,1778995840000,-33183.3746,0.00024554,2]
[422493549,1778995840000,-1000.0,0.00024658,2]
[422493548,1778995840000,-152.0,0.00024634,2]
[422493552,1778995840000,-30357.95453123,0.00024766,2]
[422493553,1778995840000,-215.0,0.00025,2]
[422493550,1778995840000,-471.59,0.00024658,2]
[422493556,1778995840000,-336.5776326,0.00025,2]
[422493557,1778995840000,-193.0,0.00025,2]
[422493558,1778995840000,-171.0,0.00025,2]
[422493567,1778995840000,-2989.34,0.00025786,2]
[422493559,1778995840000,-200.16,0.00025,2]
[422493566,1778995840000,-2132.26,0.00025786,2]
[422493561,1778995840000,-2239.88831495,0.00025049,2]
[422493563,1778995840000,-30357.95453123,0.00025478,2]
[422493564,1778995840000,-165.13,0.00025756,2]
[422493568,1778995840000,-989.53,0.00025786,2]
[422493560,1778995840000,-165.13,0.00025026,2]
[422493562,1778995840000,-233.43,0.00025189,2]
[422493570,1778995840000,-215.0785988,0.00026098,2]
[422493599,1778995840000,-1534.0,0.000271,7]
[422493612,1778995840000,-370.84,0.00027202,2]
[422493602,1778995840000,-370.83,0.00027133,2]
[422493633,1778995840000,-999.0,0.00027397,2]
[422493636,1778995840000,-999.0,0.00027397,2]
[422493632,1778995840000,-999.0,0.00027397,2]
[422493631,1778995840000,-999.0,0.00027397,2]
[422493638,1778995840000,-208.48490792,0.00027397,10]
[422493634,1778995840000,-999.0,0.00027397,2]
[422493637,1778995840000,-1500.0,0.00027397,2]
[422493640,1778995840000,-25064.1,0.00027397,10]
[422493644,1778995840000,-14504.69,0.00027397,10]
[422493642,1778995840000,-20886.75,0.00027397,10]
[422493650,1778995840000,-30357.95453123,0.00027613,2]
[422493643,1778995840000,-17405.63,0.00027397,10]
[422493651,1778995840000,-536.0,0.00027671,2]
[422493645,1778995840000,-166.77041051,0.00027397,30]
[422493646,1778995840000,-422.36,0.000274,7]
[422493641,1778995840000,-471.59,0.00027397,2]
[422493652,1778995840000,-233.43,0.00027708,2]
[422493649,1778995840000,-215.0785988,0.000274,10]
[422493648,1778995840000,-841.41,0.000274,7]
[422493654,1778995840000,-500.0,0.000278,7]
[422493653,1778995840000,-499.51038286,0.00027761,15]
[422493656,1778995840000,-185.42,0.00027958,2]
[422493655,1778995840000,-31489.0,0.000278,2]
[422493658,1778995840000,-477.99,0.00028077,2]
[422493657,1778995840000,-188.45,0.00028,2]
[422493659,1778995840000,-477.99,0.0002817,2]
[422493598,1778995840000,-247.22,0.00027079,2]
[422493639,1778995840000,-300.0,0.00027397,2]
[422493630,1778995840000,-999.0,0.00027397,2]
[422493647,1778995840000,-8389.54,0.000274,14]
[422493628,1778995840000,-999.0,0.00027397,2]
[422493629,1778995840000,-999.0,0.00027397,2]
[422493614,1778995840000,-1991.0161302,0.00027397,30]
[422493613,1778995840000,-2239.88831495,0.00027397,2]
[422493604,1778995840000,-247.23,0.00027183,2]
[422493605,1778995840000,-247.23,0.00027183,2]
[422493607,1778995840000,-370.83,0.00027183,2]
[422493603,1778995840000,-536.0,0.00027137,2]
[422493609,1778995840000,-645.76058024,0.000272,2]
[422493606,1778995840000,-370.83,0.00027183,2]
[422493610,1778995840000,-449.85961771,0.000272,2]
[422493608,1778995840000,-247.22,0.00027184,2]
[422493611,1778995840000,-247.23,0.00027201,2]
[422493615,1778995840000,-999.0,0.00027397,2]
[422493601,1778995840000,-163.33619208,0.00027123,20]
[422493619,1778995840000,-999.0,0.00027397,2]
[422493635,1778995840000,-999.0,0.00027397,2]
[422493618,1778995840000,-999.0,0.00027397,2]
[422493627,1778995840000,-999.0,0.00027397,2]
[422493622,1778995840000,-999.0,0.00027397,2]
[422493624,1778995840000,-999.0,0.00027397,2]
[422493621,1778995840000,-999.0,0.00027397,2]
[422493625,1778995840000,-999.0,0.00027397,2]
[422493626,1778995840000,-999.0,0.00027397,2]
[422493623,1778995840000,-999.0,0.00027397,2]
[422493620,1778995840000,-999.0,0.00027397,2]
[422493617,1778995840000,-999.0,0.00027397,2]
[422493616,1778995840000,-999.0,0.00027397,2]
[422493697,1778995841000,-1728.4,0.0002863,2]
[422493700,1778995841000,-3253.82,0.0002863,2]